bitfinex/quotes_SOLUSD_20250915
["timestamp","ask_amount","ask_price","bid_price","bid_amount"]
[1757965365233,40.93793875,233.89,233.88,1e-08]
[1757965365863,43.36036337,233.89,233.88,1e-08]
[1757965366647,26.0,233.86,233.84,0.06]
[1757965366851,36.00242462,233.85,233.84,0.06]
[1757965367034,36.66242462,233.85,233.84,0.06]
[1757965367442,36.00242462,233.85,233.84,0.06]
[1757965367852,40.27867007,233.85,233.84,0.06]
[1757965368744,40.53617007,233.85,233.84,0.06]
[1757965369057,6.95617007,233.85,233.84,0.06]
[1757965369248,40.55617007,233.85,233.84,0.06]
[1757965369449,41.21617007,233.85,233.84,0.06]
[1757965370857,26.0,233.82,233.81,0.1]
[1757965371161,62.02242462,233.82,233.81,0.1]
[1757965371547,66.29921873,233.82,233.81,0.1]
[1757965372256,30.27679411,233.82,233.81,0.1]
[1757965372433,133.8,233.84,233.82,13.59559401]
[1757965372634,36.02242462,233.83,233.82,13.59559401]
[1757965372862,36.68242462,233.83,233.81,0.1]
[1757965373041,36.02242462,233.82,233.81,13.69559401]
[1757965373360,36.02242462,233.82,233.81,0.1]
[1757965373544,40.98921873,233.82,233.81,0.1]
[1757965373930,40.29921873,233.82,233.81,0.1]
[1757965374154,40.29921873,233.82,233.81,14.36559401]
[1757965374335,40.29921873,233.82,233.81,13.69559401]
[1757965375341,2.42242462,233.82,233.81,14.36559401]
[1757965375663,26.0,233.84,233.82,13.59559401]
[1757965375834,33.6,233.83,233.81,0.1]
[1757965376257,34.29,233.83,233.81,0.1]
[1757965376558,33.6,233.83,233.81,0.1]
[1757965376758,2.42242462,233.82,233.81,0.1]
[1757965376959,36.02242462,233.82,233.81,0.1]
[1757965377252,36.71242462,233.82,233.81,0.1]
[1757965377456,36.02242462,233.82,233.81,0.1]
[1757965377674,40.29921873,233.82,233.81,0.1]
[1757965378460,40.98921873,233.82,233.81,0.1]
[1757965379640,40.29921873,233.82,233.81,0.1]
[1757965380643,6.69921873,233.82,233.81,0.1]
[1757965380839,40.29921873,233.82,233.81,0.1]
[1757965381246,40.98921873,233.82,233.81,0.1]
[1757965382761,40.98921873,233.82,233.81,0.16]
[1757965382956,40.98921873,233.82,233.81,1e-08]
[1757965383160,40.98921873,233.82,233.8,0.06]
[1757965383341,2.42242462,233.81,233.8,0.06]
[1757965383535,136.22242462,233.81,233.8,0.06]
[1757965383764,136.93242462,233.81,233.8,0.06]
[1757965384068,141.20940165,233.81,233.8,0.06]
[1757965384562,174.09940165,233.81,233.8,0.72]
[1757965384946,140.49940165,233.81,233.8,0.72]
[1757965385150,4.2760626,233.86,233.81,13.59559401]
[1757965385448,167.4,233.85,233.83,13.59559401]
[1757965385635,2.42242462,233.84,233.83,13.59559401]
[1757965385836,2.42242462,233.84,233.8,0.06]
[1757965386063,2.42242462,233.81,233.8,0.06]
[1757965386262,36.02242462,233.81,233.8,0.72]
[1757965386840,2.42242462,233.81,233.8,0.72]
[1757965387039,2.42242462,233.83,233.81,13.59559401]
[1757965387253,2.42242462,233.83,233.82,0.66]
[1757965387647,33.6,233.84,233.83,13.59559401]
[1757965387847,36.02242462,233.84,233.83,13.59559401]
[1757965388052,40.29885294,233.84,233.83,13.59559401]
[1757965388549,40.29885294,233.84,233.81,13.59559401]
[1757965388870,2.42242462,233.82,233.8,0.06]
[1757965389450,2.42242462,233.82,233.81,0.66]
[1757965390069,4.27697703,233.81,233.8,0.06]
[1757965390364,40.27940165,233.81,233.8,0.06]
[1757965390575,40.27940165,233.81,233.8,14.31559401]
[1757965390784,40.27940165,233.81,233.8,13.65559401]
[1757965391571,40.53690165,233.81,233.8,13.65559401]
[1757965391968,0.2575,233.81,233.8,13.65559401]
[1757965392172,0.2575,233.81,233.8,18.59275397]
[1757965392361,0.2575,233.81,233.8,14.31559401]
[1757965392562,0.2575,233.81,233.8,18.59275397]
[1757965394179,0.2575,233.81,233.8,14.31559401]
[1757965394553,2.67992462,233.81,233.8,14.31559401]
[1757965396961,0.2575,233.81,233.8,14.31559401]
[1757965398573,3.38992462,233.81,233.8,13.65559401]
[1757965398779,2.67992462,233.81,233.8,13.65559401]
[1757965399977,6.95690165,233.81,233.8,13.65559401]
[1757965400151,7.66690165,233.81,233.8,13.65559401]
[1757965400474,7.69690165,233.81,233.8,0.06]
[1757965406171,41.27690165,233.81,233.8,0.06]
[1757965407082,7.69690165,233.81,233.8,0.06]
[1757965407272,41.27690165,233.81,233.8,0.06]
[1757965409770,30.56447703,233.81,233.8,0.06]
[1757965409971,65.69695808,233.81,233.8,0.06]
[1757965411971,66.39695808,233.81,233.8,0.06]
[1757965414368,65.69695808,233.81,233.8,0.06]
[1757965414881,32.11695808,233.81,233.8,0.06]
[1757965415084,66.39695808,233.81,233.8,0.06]
[1757965415405,65.69695808,233.81,233.8,0.06]
[1757965416077,65.69695808,233.81,233.8,0.77]
[1757965416709,64.14447703,233.81,233.8,0.77]
[1757965417197,65.69695808,233.81,233.8,0.06]
[1757965417798,65.69695808,233.81,233.8,0.77]
[1757965417982,30.56447703,233.81,233.8,14.36559401]
[1757965418191,64.14447703,233.81,233.8,14.36559401]
[1757965419997,65.69695808,233.81,233.8,14.36559401]
[1757965420189,65.69695808,233.81,233.8,13.65559401]
[1757965420383,64.14447703,233.81,233.8,13.65559401]
[1757965420597,65.69695808,233.81,233.8,13.65559401]
[1757965420780,66.39695808,233.81,233.8,13.65559401]
[1757965420978,66.39695808,233.81,233.8,0.06]
[1757965422471,66.53911965,233.81,233.79,0.06]
[1757965422675,1.55248105,233.8,233.79,0.06]
[1757965423303,2.25248105,233.8,233.79,0.06]
[1757965424079,6.52964101,233.8,233.79,0.06]
[1757965424480,9.41200995,233.8,233.79,0.06]
[1757965424808,9.41200995,233.8,233.78,0.06]
[1757965424809,9.55417152,233.8,233.78,0.06]
[1757965425015,1.55248105,233.72,233.66,13.59559401]
[1757965425210,61.11248105,233.72,233.66,13.59559401]
[1757965425381,61.81248105,233.72,233.65,0.2]
[1757965425583,1.55248105,233.66,233.65,0.2]
[1757965425783,35.11248105,233.66,233.65,0.2]
[1757965426007,39.39220372,233.66,233.65,0.2]
[1757965428123,39.39220372,233.66,233.65,0.91]
[1757965428409,26.0,233.66,233.65,0.91]
[1757965428583,59.56,233.66,233.65,0.91]
[1757965429009,26.0,233.66,233.65,14.50559401]
[1757965429790,37.85947415,233.68,233.65,14.50559401]
[1757965429996,37.85947415,233.68,233.66,14.30559401]
[1757965430492,39.4119552,233.68,233.66,14.30559401]
[1757965430687,35.13248105,233.68,233.66,14.30559401]
[1757965430905,133.8,233.71,233.68,13.59559401]
[1757965431131,133.8,233.71,233.7,13.59559401]
[1757965431292,133.8,233.71,233.68,2.26248105]
[1757965431603,133.8,233.71,233.7,13.59559401]
[1757965431604,138.07880706,233.71,233.7,13.59559401]
[1757965431988,140.33128811,233.71,233.65,16.05807506]
[1757965432184,4.27917326,233.69,233.65,14.50559401]
[1757965432492,5.83165431,233.69,233.65,14.50559401]
[1757965432698,5.83165431,233.69,233.67,13.59559401]
[1757965432997,5.83147855,233.7,233.67,13.59559401]
[1757965433408,4.2789975,233.7,233.65,0.2]
[1757965433614,5.83147855,233.7,233.67,13.59559401]
[1757965433905,16.52895394,233.7,233.67,13.59559401]
[1757965435203,16.52895394,233.7,233.67,13.65559401]
[1757965435713,16.52895394,233.7,233.67,0.06]
[1757965436016,50.10895394,233.7,233.67,0.06]
[1757965436691,133.8,233.69,233.67,0.06]
[1757965438522,38.53935638,233.68,233.67,0.06]
[1757965438815,40.09183743,233.68,233.67,0.06]
[1757965440192,4.27913514,233.7,233.67,14.36559401]
[1757965440395,37.83913514,233.7,233.68,0.71]
[1757965440619,171.63913514,233.7,233.68,13.59559401]
[1757965440795,167.36,233.7,233.68,14.30559401]
[1757965441197,133.8,233.7,233.69,14.30559401]
[1757965441391,133.8,233.7,233.69,15.85807506]
[1757965442016,133.8,233.7,233.69,14.30559401]
[1757965444213,133.8,233.7,233.69,18.58476727]
[1757965444411,133.8,233.7,233.69,14.30559401]
[1757965444910,134.0575,233.7,233.69,14.30559401]
[1757965446818,134.0575,233.7,233.69,13.59559401]
[1757965447015,138.33649015,233.7,233.69,13.59559401]
[1757965447923,136.31998105,233.7,233.69,13.59559401]
[1757965449012,138.33649015,233.7,233.69,13.59559401]
[1757965450199,135.60998105,233.7,233.69,13.59559401]
[1757965451312,134.0575,233.7,233.69,14.26559401]
[1757965452323,134.0575,233.7,233.69,15.81807506]
[1757965452632,134.0575,233.7,233.69,14.26559401]
[1757965453516,134.0575,233.7,233.69,13.59559401]
[1757965454411,138.33649015,233.7,233.69,13.59559401]
[1757965454926,134.0575,233.7,233.69,14.26559401]
[1757965455324,134.0575,233.7,233.69,13.59559401]
[1757965455706,134.0575,233.7,233.69,14.26559401]
[1757965456810,134.0575,233.7,233.69,13.59559401]
[1757965459539,134.0575,233.7,233.69,14.26559401]
[1757965460312,134.0575,233.7,233.69,13.59559401]
[1757965460830,134.0575,233.7,233.69,14.26559401]
[1757965461225,134.0575,233.7,233.69,20.09724832]
[1757965461427,0.2575,233.7,233.69,15.81807506]
[1757965461931,0.2575,233.7,233.69,20.09724832]
[1757965463436,0.2575,233.7,233.69,20.23940989]
[1757965463647,0.03,233.71,233.7,13.73775558]
[1757965463819,0.03,233.71,233.7,49.52023663]
[1757965464444,0.03,233.72,233.7,49.52023663]
[1757965464735,0.03,233.72,233.71,15.96023663]
[1757965465640,0.03,233.72,233.71,20.23904369]
[1757965465833,0.03,233.74,233.73,21.50016083]
[1757965466242,0.03,233.74,233.73,22.17016083]
[1757965467841,0.03,233.74,233.73,26.44860176]
[1757965470737,0.03,233.74,233.73,20.23867756]
[1757965471334,0.03,233.74,233.73,26.44860176]
[1757965471743,0.03,233.74,233.73,23.53501571]
[1757965472157,0.03,233.74,233.73,21.11060611]
[1757965475445,0.03,233.79,233.74,13.73775558]
[1757965475636,0.03,233.79,233.76,42.02000361]
[1757965476033,0.03,233.79,233.76,76.26000361]
[1757965476738,0.03,233.79,233.76,80.53789546]
[1757965477540,0.03,233.79,233.78,0.14216157]
[1757965477781,0.03,233.79,233.78,16.58991776]
[1757965477944,0.03,233.79,233.78,17.28991776]
[1757965478454,0.03,233.79,233.78,19.00316329]
[1757965478841,0.03,233.79,233.78,23.28068916]
[1757965479152,0.03,233.81,233.78,33.97450385]
[1757965479353,0.03,233.81,233.8,42.02000361]
[1757965479556,0.03,233.81,233.8,42.4477196]
[1757965479732,0.03,233.81,233.8,43.1477196]
[1757965480334,0.03,233.81,233.8,47.42487956]
[1757965482243,0.03,233.81,233.8,46.99716357]
[1757965483763,0.03,233.81,233.8,47.42487956]
[1757965488270,0.74,233.81,233.8,53.93932514]
[1757965488473,0.03,233.81,233.8,53.93932514]
[1757965488951,0.74,233.81,233.8,53.93932514]
[1757965490064,0.74,233.81,233.8,20.43932514]
[1757965490373,0.74,233.81,233.8,53.93932514]
[1757965490969,0.03,233.81,233.8,53.93932514]
[1757965491179,0.03,233.81,233.8,54.63932514]
[1757965491352,0.03,233.81,233.8,55.06704113]
[1757965493483,0.03,233.81,233.8,21.56704113]
[1757965493655,0.03,233.81,233.8,55.06704113]
[1757965494267,0.03,233.84,233.83,39.59559401]
[1757965494467,0.03,233.86,233.84,13.73775558]
[1757965494773,0.03,233.86,233.83,75.94766473]
[1757965494774,0.74,233.86,233.85,49.66216518]
[1757965495169,0.03,233.86,233.85,49.66216518]
[1757965495660,0.03,233.86,233.85,53.93841063]
[1757965496073,0.03,233.86,233.85,57.49044477]
[1757965496365,0.03,233.86,233.85,55.65114265]
[1757965496543,0.03,233.86,233.85,53.93841063]
[1757965496742,0.03,233.86,233.85,54.64841063]
[1757965496949,0.03,233.86,233.85,21.14841063]
[1757965497263,0.03,233.86,233.85,53.93841063]
[1757965497854,0.03,233.86,233.85,57.07282023]
[1757965500050,0.71,233.9,233.88,16.16216518]
[1757965500250,4.27517908,233.91,233.88,13.59559401]
[1757965500450,0.03,233.92,233.88,49.52000361]
[1757965500851,0.81,233.89,233.88,49.52000361]
[1757965501570,0.81,233.89,233.88,16.02000361]
[1757965501772,0.81,233.89,233.88,49.50000361]
[1757965503372,0.81,233.89,233.88,16.02000361]
[1757965503573,5.08551413,233.89,233.88,13.59559401]
[1757965504473,0.81,233.89,233.88,47.07559401]
[1757965504679,0.81,233.89,233.88,49.50000361]
[1757965507368,0.81,233.89,233.88,47.07559401]
[1757965508274,0.81,233.89,233.88,49.50000361]
[1757965508475,0.13,233.89,233.88,53.77570054]
[1757965509584,0.8,233.89,233.88,49.50000361]
[1757965510776,0.13,233.89,233.88,53.77570054]
[1757965510992,0.13,233.89,233.88,54.48570054]
[1757965511767,0.13,233.89,233.88,54.62786211]
[1757965512500,0.03,233.92,233.91,39.59559401]
[1757965512802,0.03,233.92,233.91,46.43731374]
[1757965513100,0.03,233.92,233.91,53.91731374]
[1757965513268,0.03,233.92,233.91,20.29515217]
[1757965513459,0.7,233.92,233.91,49.50000361]
[1757965513892,0.7,233.92,233.91,47.07559401]
[1757965514188,0.7,233.92,233.91,49.50000361]
[1757965514391,0.7,233.92,233.91,47.07559401]
[1757965514965,0.7,233.92,233.91,13.59559401]
[1757965515164,0.03,233.92,233.91,49.50000361]
[1757965516365,0.03,233.92,233.91,47.07559401]
[1757965516685,0.03,233.92,233.91,49.50000361]
[1757965517289,0.03,233.92,233.91,16.02000361]
[1757965517488,0.03,233.92,233.91,49.50000361]
[1757965518083,0.03,233.92,233.91,53.77515217]
[1757965519569,0.03,233.92,233.91,54.48515217]
[1757965519965,0.03,233.92,233.91,20.29515217]
[1757965520175,0.03,233.92,233.91,53.75515217]
[1757965520581,0.03,233.92,233.91,54.46515217]
[1757965521495,0.03,233.92,233.91,21.00515217]
[1757965521668,0.03,233.92,233.91,54.46515217]
[1757965522575,0.03,233.92,233.91,53.75515217]
[1757965524578,0.7,233.92,233.91,49.48000361]
[1757965524780,0.7,233.92,233.91,47.05559401]
[1757965525075,0.7,233.92,233.91,49.48000361]
[1757965526479,0.7,233.92,233.91,47.05559401]
[1757965527099,0.7,233.92,233.91,16.02000361]
[1757965527585,0.7,233.92,233.91,49.48000361]
[1757965528903,0.03,233.92,233.91,49.48000361]
[1757965529084,0.03,233.92,233.91,54.46515217]
[1757965529682,0.03,233.92,233.91,53.75515217]
[1757965530388,0.03,233.92,233.91,20.29515217]
[1757965530590,0.03,233.92,233.91,53.75515217]
[1757965530898,0.03,233.92,233.91,49.48000361]
[1757965531574,0.7,233.92,233.91,47.05559401]
[1757965531981,0.7,233.92,233.91,13.59559401]
[1757965532877,4.9749658,233.92,233.91,13.59559401]
[1757965536688,0.03,233.92,233.91,48.60604023]
[1757965537088,0.75,233.92,233.91,48.60604023]
[1757965537792,0.03,233.92,233.91,48.60604023]
[1757965539406,0.75,233.92,233.91,48.60604023]
[1757965539807,0.75,233.92,233.91,15.14604023]
[1757965540103,0.75,233.92,233.91,48.60604023]
[1757965540309,0.03,233.92,233.91,48.60604023]
[1757965540902,0.2876,233.92,233.91,48.60604023]
[1757965541714,0.2876,233.92,233.91,47.05559401]
[1757965542705,0.2876,233.92,233.91,52.88118879]
[1757965542898,0.2876,233.92,233.91,48.60604023]
[1757965543395,0.2876,233.92,233.91,47.05559401]
[1757965543786,0.2876,233.92,233.91,48.60604023]
[1757965544203,0.2876,233.92,233.91,47.05559401]
[1757965544921,1.0076,233.92,233.91,47.05559401]
[1757965545602,0.2876,233.92,233.91,47.05559401]
[1757965547708,0.2876,233.92,233.91,53.55118879]
[1757965549810,1.0076,233.92,233.91,13.59559401]
[1757965550015,1.0076,233.92,233.91,47.03559401]
[1757965550316,0.2876,233.92,233.91,47.03559401]
[1757965550491,1.0076,233.92,233.91,47.03559401]
[1757965551319,0.2876,233.92,233.91,51.31074257]
[1757965552418,0.2876,233.92,233.91,47.03559401]
[1757965553207,0.2876,233.92,233.91,51.31074257]
[1757965554110,0.2876,233.92,233.91,56.73294877]
[1757965555009,0.2876,233.92,233.91,53.53118879]
[1757965555914,0.2876,233.92,233.91,54.10086521]
[1757965556820,0.2876,233.92,233.91,53.67335036]
[1757965561520,0.2876,233.92,233.91,13.59559401]
[1757965561521,0.9776,233.92,233.91,13.59559401]
[1757965561702,0.9776,233.92,233.91,47.01559401]
[1757965561898,0.9776,233.92,233.91,13.59559401]
[1757965562111,0.9776,233.92,233.91,47.01559401]
[1757965562615,0.2876,233.92,233.91,51.29074257]
[1757965562831,0.2876,233.92,233.91,53.52118879]
[1757965563320,0.2876,233.92,233.91,20.10118879]
[1757965563626,0.2876,233.92,233.91,51.29074257]
[1757965563824,0.9376,233.92,233.91,13.59559401]
[1757965564022,0.9376,233.92,233.91,47.01559401]
[1757965564820,0.2876,233.92,233.91,52.84118879]
[1757965565027,0.2876,233.92,233.91,56.03083112]
[1757965565409,0.2876,233.92,233.91,56.71083112]
[1757965565609,0.2876,233.92,233.91,56.03083112]
[1757965566105,0.2876,233.92,233.91,52.84118879]
[1757965566927,0.2876,233.92,233.91,53.66335036]
[1757965567224,0.2876,233.92,233.91,54.09086521]
[1757965567441,0.2876,233.92,233.91,53.82526956]
[1757965567614,0.2876,233.92,233.91,52.11290414]
[1757965569422,0.2876,233.92,233.91,52.54041899]
[1757965569727,0.2876,233.92,233.91,54.25278441]
[1757965571029,0.2876,233.92,233.91,53.82526956]
[1757965571332,0.2876,233.92,233.91,52.84118879]
[1757965571626,0.2876,233.92,233.91,53.52118879]
[1757965571830,0.2876,233.92,233.91,52.11290414]
[1757965572014,0.2876,233.92,233.91,53.66335036]
[1757965572834,0.2876,233.92,233.91,54.09086521]
[1757965573025,0.2876,233.92,233.91,53.66335036]
[1757965573224,0.2876,233.92,233.91,55.37578908]
[1757965573736,0.03,233.94,233.91,55.37578908]
[1757965573737,0.03,233.94,233.93,41.2882018]
[1757965573930,0.03,233.94,233.93,73.15775558]
[1757965574116,0.03,233.94,233.93,75.3882018]
[1757965574511,0.03,233.94,233.93,77.10034733]
[1757965575719,0.03,233.94,233.93,81.37513038]
[1757965576933,0.03,233.94,233.93,80.69513038]
[1757965577123,0.03,233.94,233.93,45.42082328]
[1757965577321,0.03,233.94,233.93,79.52082328]
[1757965577921,0.03,233.94,233.93,78.84082328]
[1757965578224,0.03,233.94,233.93,78.98298485]
[1757965578422,0.03,233.94,233.93,79.66298485]
[1757965578621,0.03,233.94,233.93,78.98298485]
[1757965579022,0.03,233.94,233.93,79.66298485]
[1757965579229,0.03,233.94,233.93,47.27527696]
[1757965579433,0.03,233.94,233.93,78.96298485]
[1757965582326,0.03,233.94,233.93,79.64298485]
[1757965582540,0.03,233.94,233.93,81.35527696]
[1757965584142,0.1,233.95,233.94,13.73775558]
[1757965584334,0.1,233.95,233.94,14.41775558]
[1757965584538,0.1,233.95,233.94,14.84521561]
[1757965584732,0.1,233.95,233.94,16.55736115]
[1757965585948,0.1,233.95,233.94,20.83196147]
[1757965588344,0.1,234.03,233.97,26.0]
[1757965588642,0.1,234.03,234.0,0.14216157]
[1757965588834,0.1,234.03,234.01,49.3682018]
[1757965589144,0.1,234.03,234.01,48.6882018]
[1757965589845,0.68,234.02,234.01,47.13775558]
[1757965590031,0.68,234.02,234.01,48.6882018]
[1757965590233,0.03,234.02,234.01,52.96152345]
[1757965590435,0.68,234.02,234.01,51.26891566]
[1757965591550,0.68,234.02,234.01,17.86891566]
[1757965591750,0.68,234.02,234.01,46.99559401]
[1757965592751,0.68,234.02,234.01,13.59559401]
[1757965592934,0.68,234.02,234.01,46.99559401]
[1757965594563,0.68,234.02,234.01,13.59559401]
[1757965594854,0.68,234.02,234.01,46.99559401]
[1757965601358,4.95313904,234.02,234.01,13.59559401]
[1757965601673,7.37376538,234.02,233.99,13.59559401]
[1757965601837,2.42062634,234.0,233.99,13.59559401]
[1757965602037,7.39413061,234.0,233.99,13.59559401]
[1757965602238,7.39413061,234.0,233.98,13.59559401]
[1757965602435,0.7,233.99,233.98,13.59559401]
[1757965603778,134.5,234.01,233.98,13.59559401]
[1757965604063,0.7,234.0,233.98,13.59559401]
[1757965604263,0.7,233.99,233.98,13.59559401]
[1757965606459,4.9736869,233.99,233.98,13.59559401]
[1757965607274,0.7,233.99,233.98,13.59559401]
[1757965609271,4.9736869,233.99,233.98,13.59559401]
[1757965609464,7.39431324,233.99,233.98,13.65559401]
[1757965610475,7.39431324,233.99,233.98,0.06]
[1757965611853,3.12062634,233.99,233.98,0.06]
[1757965613076,7.39431324,233.99,233.98,0.06]
[1757965614055,4.9736869,233.99,233.98,0.06]
[1757965614261,7.39431324,233.99,233.98,0.06]
[1757965617475,4.9736869,233.99,233.98,0.06]
[1757965617664,2.42062634,233.99,233.98,0.06]
[1757965617864,133.8,234.01,233.99,13.59559401]
[1757965618178,4.30316007,234.02,233.99,13.59559401]
[1757965619077,0.03,234.02,234.0,0.7]
[1757965619283,0.1,234.03,234.02,0.14216157]
[1757965619666,0.1,234.03,234.02,16.85838192]
[1757965620269,0.1,234.03,234.02,14.43775558]
[1757965620586,0.1,234.03,234.02,16.85838192]
[1757965620880,0.1,234.03,234.02,14.29559401]
[1757965621083,0.1,234.03,234.02,46.99559401]
[1757965621476,0.1,234.03,234.02,47.69559401]
[1757965621872,0.1,234.03,234.02,46.99559401]
[1757965623178,0.1,234.03,234.02,47.65559401]
[1757965623766,0.1,234.03,234.02,46.99559401]
[1757965624391,5.08295645,234.03,234.02,46.99559401]
[1757965625082,5.08295645,234.03,234.02,13.59559401]
[1757965625989,0.1,234.03,234.02,13.59559401]
[1757965628296,0.1,234.03,234.02,13.65559401]
[1757965629276,0.1,234.03,234.02,17.92873305]
[1757965629586,0.1,234.03,234.02,51.30873305]
[1757965630378,0.1,234.03,234.02,47.03559401]
[1757965631080,0.1,234.03,234.02,51.30873305]
[1757965631282,0.1,234.03,234.02,51.96873305]
[1757965637497,0.1,234.03,234.02,54.53152096]
[1757965638389,0.1,234.03,234.02,57.72767356]
[1757965644210,0.1,234.03,234.02,55.30704722]
[1757965644395,0.1,234.03,234.02,57.72767356]
[1757965645205,0.1,234.03,234.02,24.34767356]
[1757965645385,0.1,234.03,234.02,57.04767356]
[1757965645892,0.1,234.03,234.02,57.70767356]
[1757965646281,0.1,234.03,234.02,54.51152096]
[1757965646997,0.1,234.03,234.02,57.70277056]
[1757965647210,0.1,234.03,234.02,54.51152096]
[1757965647582,0.1,234.03,234.02,53.85152096]
[1757965648397,0.1,234.03,234.02,54.51152096]
[1757965649178,0.1,234.03,234.02,57.70266451]
[1757965649702,0.1,234.03,234.02,54.51152096]
[1757965650091,0.1,234.03,234.02,53.85152096]
[1757965650287,0.1,234.03,234.02,54.51152096]
[1757965650490,0.81,234.03,234.02,20.34935939]
[1757965650684,0.81,234.03,234.02,47.01559401]
[1757965651986,7.50358279,234.03,234.02,13.65559401]
[1757965652202,7.50358279,234.03,234.02,47.01559401]
[1757965652921,7.50358279,234.03,234.02,13.65559401]
[1757965655799,6.6321364,234.03,234.02,13.65559401]
[1757965656521,2.35917995,234.03,234.02,13.65559401]
[1757965658017,6.6321364,234.03,234.02,13.65559401]
[1757965659905,0.81,234.03,234.02,13.65559401]
[1757965660104,5.08295645,234.03,234.02,13.65559401]
[1757965665505,6.6321364,234.03,234.02,13.65559401]
[1757965668435,0.1,234.03,234.02,14.31559401]
[1757965670819,0.1,234.03,234.02,18.58873305]
[1757965671025,0.1,234.03,234.02,14.31559401]
[1757965674238,0.1,234.03,234.02,18.58873305]
[1757965675111,0.1,234.03,234.02,13.65559401]
[1757965675112,0.77,234.03,234.02,13.65559401]
[1757965675343,6.5921364,234.03,234.02,13.65559401]
[1757965675634,6.5921364,234.03,234.02,0.06]
[1757965676633,5.04295645,234.03,234.02,0.06]
[1757965676813,6.5921364,234.03,234.02,0.06]
[1757965678222,5.04295645,234.03,234.02,0.06]
[1757965678423,6.5921364,234.03,234.02,0.06]
[1757965680826,0.1,234.03,234.02,0.06]
[1757965681028,0.1,234.03,234.02,13.65559401]
[1757965681232,0.77,234.03,234.02,13.65559401]
[1757965681628,0.1,234.03,234.02,13.65559401]
[1757965682426,4.37295645,234.03,234.02,13.65559401]
[1757965682919,0.1,234.03,234.02,13.65559401]
[1757965683646,4.37295645,234.03,234.02,13.65559401]
[1757965685745,5.07295645,234.03,234.02,13.65559401]
[1757965686038,6.6221364,234.03,234.02,0.06]
[1757965690822,39.9621364,234.03,234.02,0.06]
[1757965691045,4.37295645,234.03,234.02,0.06]
[1757965691557,0.1,234.03,234.02,14.37559401]
[1757965694250,0.1,234.03,234.02,13.65559401]
[1757965694823,6.6221364,234.03,234.02,13.65559401]
[1757965696140,5.9221364,234.03,234.02,13.65559401]
[1757965696326,4.37295645,234.03,234.02,13.65559401]
[1757965698145,4.37295645,234.03,234.02,0.06]
[1757965698146,6.6221364,234.03,234.02,0.06]
[1757965699754,39.9621364,234.03,234.02,0.06]
[1757965707043,27.54917995,234.0,233.99,0.06]
[1757965707248,60.88917995,234.0,233.99,0.06]
[1757965707548,61.58917995,234.0,233.99,0.06]
[1757965708965,65.86268422,234.0,233.99,0.06]
[1757965710566,1.54917995,233.99,233.98,0.06]
[1757965710970,6.52286685,233.99,233.98,0.06]
[1757965711337,8.236039,233.99,233.98,0.06]
[1757965715657,8.266039,233.99,233.98,0.06]
[1757965717378,7.566039,233.99,233.98,0.06]
[1757965717581,7.566039,233.99,233.98,0.76]
[1757965717582,6.01685905,233.99,233.98,0.76]
[1757965717869,4.3036869,233.99,233.98,0.76]
[1757965721473,0.03,233.99,233.98,0.76]
[1757965722470,0.03,233.99,233.98,14.35559401]
[1757965723868,0.03,233.99,233.98,13.65559401]
[1757965724383,0.03,233.99,233.98,14.35559401]
[1757965724887,0.03,233.99,233.98,0.06]
[1757965725073,0.03,233.99,233.98,0.76]
[1757965725767,0.03,233.99,233.98,14.35559401]
[1757965727158,0.03,233.99,233.98,13.65559401]
[1757965727559,3.14118657,233.99,233.98,0.06]
[1757965727759,33.41487347,233.99,233.98,0.06]
[1757965729084,35.12797226,233.99,233.98,0.06]
[1757965737086,32.70678569,233.99,233.98,0.06]
[1757965737392,35.12797226,233.99,233.98,0.06]
[1757965738582,34.43797226,233.99,233.98,0.06]
[1757965738884,35.10797226,233.99,233.98,0.06]